Cogmind - Beta 16 @@@ ROGUE MODE // 2026.01.08 @ 11:49:02 Player: leto Result: Destroyed by P-60 Hacker with Shock Rifle Performance ------------- Evolutions (2) 1000 Regions Visited (8) 1600 Robots Destroyed (114) 570 Value Destroyed (3147) 3147 Prototype IDs (8) 160 Alien Tech Used (0) 0 Bonus (535) 535 TOTAL SCORE: 7012 Bonus ------- High Alert Combat Kills 35 Entered Garrisons 200 Aligned with FarCom 300 Cogmind --------- Core Integrity 0/550 Matter 108/300 Energy 265/265 System Corruption 9% Temperature Warm (113) Movement Walking (180) Ox1 Location -8/Garrison Parts ------- > --- POWER (1) -------- Reinforced Ion Engine > --- PROPULSION (4) --- Flexi-carbon Leg Armored Leg Potential Leg Potential Leg > --- UTILITY (4) ------ Cargo Storage Unit Hardened Medium Armor Plating > --- WEAPON (2) ------- High-powered Shotgun Power Sword > --- INVENTORY (30) --- Reinforced Ion Engine Aluminum Leg VSS Leg Flexi-carbon Leg Flexi-carbon Leg Flexi-carbon Leg Flexi-carbon Leg Flexi-carbon Leg Flight Unit Flight Unit Flight Unit Particle Charger Propulsion Shielding Improved Utility Shielding Improved Utility Shielding Improved Utility Shielding Hacking Suite System Restoration Module Advanced Beam Rifle Mini Grenade Launcher Mini Grenade Launcher Mini Grenade Launcher Mini Grenade Launcher Improved Datajack Hammer Flail Peak State ------------ > --- POWER ------------ Reinforced Ion Engine > --- PROPULSION ------- Flexi-carbon Leg Armored Leg Potential Leg Potential Leg > --- UTILITY ---------- Cargo Storage Unit Hardened Medium Armor Plating > --- WEAPON ----------- High-powered Shotgun Power Sword > --- INVENTORY -------- Reinforced Ion Engine Aluminum Leg VSS Leg Flexi-carbon Leg Flexi-carbon Leg Flexi-carbon Leg Flexi-carbon Leg Flexi-carbon Leg Flight Unit Flight Unit Flight Unit Particle Charger Propulsion Shielding Improved Utility Shielding Improved Utility Shielding Improved Utility Shielding Hacking Suite System Restoration Module Advanced Beam Rifle Mini Grenade Launcher Mini Grenade Launcher Mini Grenade Launcher Mini Grenade Launcher Improved Datajack Hammer Flail [Rating: 52] Favorites ----------- Power Improved Ion Engine Engine Improved Ion Engine Propulsion Improved Treads Treads Improved Treads Leg Potential Leg Wheel Wheel Utility Cargo Storage Unit Device Particle Charger Storage Cargo Storage Unit Processor Advanced Visual Processing Unit Protection Hardened Light Armor Plating Weapon High-powered Shotgun Energy Gun Advanced Beam Rifle Ballistic Gun High-powered Shotgun Ballistic Cannon Improved Light Cannon Launcher Missile Launcher Impact Weapon Flail Slashing Weapon Power Sword Special Melee Weapon Improved Datajack Build | -11 -10 -10 -9 -9 -9 -8 -8 -8 ------- Run | Yrd Mat Min Mat Min Exi Min Mat Gar Slots Evolved 4 | . . . 2 . . . 2 . Power . | . . . . . . . . . Propulsion 2 | . . . 1 . . . 1 . Utility 2 | . . . 1 . . . 1 . Weapon . | . . . . . . . . . Parts Attached 68 | 7 12 . 19 . 1 3 11 15 Power 10 | 1 3 . 3 . . 1 1 1 Engine 10 | 1 3 . 3 . . 1 1 1 Core . | . . . . . . . . . Reactor . | . . . . . . . . . Propulsion 25 | 3 3 . 7 . 1 . 4 7 Treads 12 | 2 . . 6 . . . 4 . Leg 8 | . . . . . 1 . . 7 Wheel 5 | 1 3 . 1 . . . . . Hover . | . . . . . . . . . Flight . | . . . . . . . . . Utility 15 | 1 2 . 3 . . . 5 4 Device 2 | . . . . . . . 2 . Storage 3 | 1 2 . . . . . . . Processor 1 | . . . . . . . 1 . Hackware . | . . . . . . . . . Protection 9 | . . . 3 . . . 2 4 Artifact . | . . . . . . . . . Weapon 18 | 2 4 . 6 . . 2 1 3 Energy Gun 6 | . 2 . 4 . . . . . Energy Cannon . | . . . . . . . . . Ballistic Gun 5 | 2 1 . . . . 2 . . Ballistic Cannon 2 | . . . 2 . . . . . Launcher 2 | . . . . . . . 1 1 Special Weapon . | . . . . . . . . . Impact Weapon 1 | . 1 . . . . . . . Slashing Weapon 1 | . . . . . . . . 1 Piercing Weapon . | . . . . . . . . . Special Melee Weapon 1 | . . . . . . . . 1 Unidentified Prototypes 1 | . . . . . 1 . . . Parts Lost 34 | . 6 . 10 . . . 11 7 Power 5 | . 2 . 1 . . . 1 1 Propulsion 15 | . 2 . 4 . . . 7 2 Utility 5 | . . . 1 . . . 1 3 Weapon 9 | . 2 . 4 . . . 2 1 Highest Loss Streak 5 | . 5 . 3 . . . 5 3 To Critical Strikes . | . . . . . . . . . Average Backups 25 | 1 14 25 27 30 29 28 29 21 Power 1 | . . 1 2 2 2 2 3 1 Propulsion 8 | 1 5 11 9 9 9 10 8 5 Utility 6 | . 2 5 6 8 8 8 7 7 Weapon 8 | . 5 8 9 11 10 8 8 6 Tool/Special . | . . . . . . . . . Unused Backups 25 | . . . 1 . 4 . 2 18 Power 2 | . . . . . . . 1 1 Propulsion 10 | . . . 1 . 1 . 1 7 Utility 5 | . . . . . . . . 5 Weapon 8 | . . . . . 3 . . 5 Tool/Special . | . . . . . . . . . Average Slot Usage (%) 81 | . 82 85 85 88 66 87 87 67 Engine 10 | . 13 14 10 11 11 11 8 6 Treads 24 | . 10 . 25 33 32 33 34 2 Leg 1 | . . . . . . . . 13 Wheel 5 | . 17 28 6 . . . . 5 Storage 11 | . 14 14 10 11 11 11 9 9 Protection 9 | . . . 10 11 11 11 11 12 Energy Gun 8 | . 8 28 19 22 . . 2 . Ballistic Gun 8 | . 13 . . . . 21 13 12 Peak Build Rating 52 | 6 12 12 25 25 26 25 31 52 Average Rating 20 | 4 9 12 21 25 18 24 28 29 On Entrance 15 | . 6 12 12 25 25 19 25 15 Avg Prop Armor Cover (%) 12 | 4 . . 3 . 17 . 13 8 Naked Turns . | . . . . . . . . . Heaviest Build 165 | 12 151 149 161 156 156 158 164 165 Greatest Support 100 | 40 40 20 69 69 69 69 89 100 Greatest Overweight (x) 47 | . 47 7 15 2 6 2 7 16 Average Overweight (x) 3 | . 4 7 3 2 2 2 1 6 Largest Inventory Capacity 30 | 8 30 30 30 30 30 30 30 30 Average Capacity 29 | 7 26 30 29 30 30 30 30 30 Most Carried 30 | 2 25 25 30 30 30 30 30 26 Average Carried 25 | 1 14 25 27 30 29 28 29 21 Final Capacity 30 | 8 30 30 30 30 30 30 30 30 Final Carried 30 | 2 25 25 30 30 30 30 27 26 Class Distribution -------------------- 94% | Hauler-Mutant 5% | Mutant Dominant Class ---------------- Hauler-Mutant | -10/Materials Hauler-Mutant | -10/Mines Hauler-Mutant | -9/Materials Hauler-Mutant | -9/Mines Hauler-Mutant | -9/Exiles Hauler-Mutant | -8/Mines Hauler-Mutant | -8/Materials Hauler-Mutant | -8/Garrison Resources | -11 -10 -10 -9 -9 -9 -8 -8 -8 ----------- Run | Yrd Mat Min Mat Min Exi Min Mat Gar Matter Collected 2007 | 194 380 . 440 . . 363 333 297 Remotely 31 | . . . . . . . 31 . Salvage Created 3820 | . 354 . 2309 . . 395 465 297 Parts 253 | . 45 . 147 . . 26 23 12 Haulers Intercepted 5 | . 1 . 4 . . . . . Recyclers Shooed 2 | . . . 2 . . . . . Parts Field Recycled . | . . . . . . . . . Retrieved Matter . | . . . . . . . . . Parts Self-Destructed . | . . . . . . . . . Prevented . | . . . . . . . . . Parts Restored . | . . . . . . . . . Kills | -11 -10 -10 -9 -9 -9 -8 -8 -8 ------- Run | Yrd Mat Min Mat Min Exi Min Mat Gar Combat Hostiles Destroyed 76 | . 8 . 38 . . 13 10 7 Guns 63 | . 7 . 30 . . 13 7 6 Cannons 5 | . . . 5 . . . . . AOE 5 | . . . 3 . . . 2 . Classes Destroyed 14 | . 7 . 4 . . 1 1 1 Worker 6 | . . . 5 . . 1 . . Builder 6 | . 4 . 2 . . . . . Tunneler 3 | . 1 . 2 . . . . . Hauler 5 | . 1 . 4 . . . . . Recycler 5 | . . . 3 . . 1 1 . Operator 5 | . 2 . 2 . . . 1 . Watcher 8 | . 3 . 5 . . . . . Swarmer 19 | . 5 . 7 . . 7 . . Grunt 36 | . 3 . 21 . . 4 6 2 Brawler 4 | . . . . . . 2 1 1 Duelist 1 | . . . 1 . . . . . Sentry 12 | . . . 9 . . . 2 1 Specialist 2 | . . . . . . . . 2 Hunter 2 | . . . . . . . 1 1 Best Kill Streak 6 | . 5 . 6 . . 4 3 2 Combat Bots Only 5 | . 4 . 5 . . 4 2 2 Max Kills in Single Turn 4 | . 2 . 4 . . 2 1 1 Gunslinging 1 | . . . . . . 1 . . Exploded 2 | . . . 2 . . . 1 . Melee . | . . . . . . . . . Uniques/NPCs Destroyed . | . . . . . . . . . Combat | -11 -10 -10 -9 -9 -9 -8 -8 -8 -------- Run | Yrd Mat Min Mat Min Exi Min Mat Gar Hostile Shots Fired 574 | . 98 . 167 . . 66 114 129 Missed 167 | . 33 . 44 . . 18 32 40 Hits 407 | . 65 . 123 . . 48 82 89 Melee 7 | . . . 2 . . 3 1 1 Projectile 400 | . 65 . 121 . . 45 81 88 AOE 1 | . . . . . . . 1 . Critical Strikes 7 | . . . 1 . . 1 3 2 Part Disruptions 1 | . . . . . . . . 1 Damage Taken 6410 | . 1051 . 1689 . . 556 1576 1538 Core 1163 | . 238 . 299 . . 76 297 253 Absorbed by Shields . | . . . . . . . . . Redirected to Shielding 90 | . . . 10 . . . . 80 Regen/Repaired (Parts) 904 | . . . 904 . . . . . Core Remaining (%) 36 | 100 . 4 . . . 6 . . Volleys Fired 278 | . 49 . 131 . . 23 43 32 Largest 2 | . 2 . 2 . . 2 2 2 Hottest 122 | . 90 . 122 . . 50 122 50 Shots Fired 481 | . 73 . 234 . . 47 78 49 Gun 437 | . 73 . 198 . . 47 70 49 Cannon 36 | . . . 36 . . . . . Launcher 8 | . . . . . . . 8 . Special . | . . . . . . . . . Kinetic 235 | . 61 . 36 . . 47 42 49 Thermal 130 | . . . 102 . . . 28 . Explosive 8 | . . . . . . . 8 . Electromagnetic 108 | . 12 . 96 . . . . . Robot Hit Streak 21 | . 4 . 21 . . 8 9 12 Robot Miss Streak 8 | . 4 . 7 . . 7 5 8 Penetration Max . | . . . . . . . . . Secondary Targets 8 | . . . 1 . . 6 1 . Max Gunslinging Chain 1 | . . . 1 . . 1 1 . Shots Hit Robots 331 | . 39 . 159 . . 35 54 44 Core Hits 171 | . 19 . 87 . . 23 26 16 Critical Kills 3 | . 1 . . . . 1 1 . Critical Parts Destroyed 4 | . 2 . . . . . . 2 Critical Strikes 19 | . 3 . 7 . . 1 5 3 Burn 9 | . . . 5 . . . 4 . Destroy 8 | . 3 . . . . 1 1 3 Blast 2 | . . . 2 . . . . . Melee Attacks 41 | . 4 . . . . . . 37 Impact 40 | . 4 . . . . . . 36 Slashing . | . . . . . . . . . Piercing . | . . . . . . . . . Sneak Attacks 3 | . 3 . . . . . . . Combat Hostiles . | . . . . . . . . . Follow-up Attacks . | . . . . . . . . . Damage Inflicted 6814 | . 834 . 3219 . . 673 1207 881 Guns 5199 | . 600 . 2280 . . 669 1013 637 Cannons 508 | . . . 508 . . . . . Explosions 418 | . . . 258 . . . 160 . Melee 457 | . 213 . . . . . . 244 Ramming 232 | . 21 . 173 . . 4 34 . Kinetic 2933 | . 506 . 508 . . 669 613 637 Thermal 1858 | . . . 1458 . . . 400 . Explosive 160 | . . . . . . . 160 . Electromagnetic 1174 | . 94 . 1080 . . . . . Impact 457 | . 213 . . . . . . 244 Slashing . | . . . . . . . . . Piercing . | . . . . . . . . . Highest Corruption 8 | . . . 2 2 2 2 . 8 Average Corruption 2 | . . . 2 2 2 2 . 5 Corruption Purged . | . . . . . . . . . Corruption Blocked . | . . . . . . . . . Effects 115 | . . . 56 2 22 29 . 6 Message Errors 23 | . . . 10 . 6 6 . 1 Matter Fused 30 | . . . 15 . 7 7 . 1 Heat Flow Errors 19 | . . . 7 1 5 4 . 2 Energy Discharges 20 | . . . 12 1 1 4 . 2 Parts Fused 2 | . . . 1 . . 1 . . Data Loss (minor) 14 | . . . 6 . 3 5 . . Data Loss (major) 2 | . . . 1 . . 1 . . Misfires 4 | . . . 3 . . 1 . . Weapon Failures 1 | . . . 1 . . . . . Overload Shots . | . . . . . . . . . Overflow Damage 270 | . 118 . 90 . . . . 62 Projectiles 11 | . . . 11 . . . . . Explosions 116 | . . . 79 . . . . 37 Melee 143 | . 118 . . . . . . 25 Knockbacks 6 | . 1 . 5 . . . . . Impact 1 | . 1 . . . . . . . Kinetic 5 | . . . 5 . . . . . Secondary . | . . . . . . . . . Self-Inflicted Damage 332 | . 3 . 175 . . . . 154 Shots 3 | . . . 2 . . . . 1 Rammed 24 | . 3 . 17 . . 1 3 . Targets Rammed 26 | . 4 . 18 . . 1 3 . Kicked . | . . . . . . . . . Crushed 2 | . 1 . 1 . . . . . Highest Temperature 566 | . 192 . 496 146 259 223 566 206 Average Temperature 130 | . 87 . 128 80 104 83 201 84 Received Heat Transfer 1656 | . 321 . 624 . . 144 468 99 Effects 20 | . . . 8 . . . 12 . Shutdowns 6 | . . . 2 . . . 4 . Energy Bleed 2 | . . . 2 . . . . . Interference 3 | . . . . . . . 3 . Short Circuit 3 | . . . . . . . 3 . Damage (minor) 4 | . . . 2 . . . 2 . Damage (major) 2 | . . . 2 . . . . . Siege Activations . | . . . . . . . . . Martial Activations . | . . . . . . . . . Shielding Activations . | . . . . . . . . . Robots Disrupted . | . . . . . . . . . Combat Hostiles . | . . . . . . . . . Robots Corrupted 3 | . 2 . . . . . . 1 Combat Hostiles 2 | . 1 . . . . . . 1 Parts Fried 7 | . 6 . . . . . . 1 Impact Corruptions 5 | . 3 . . . . . . 2 Robots Melted 1 | . . . . . . . 1 . Combat Hostiles 1 | . . . . . . . 1 . Parts Melted 8 | . . . 7 . . . 1 . Heat Transferred 3926 | . . . 2890 . . . 1036 . Parts Sabotaged . | . . . . . . . . . Parts Stolen . | . . . . . . . . . Parts Stripped . | . . . . . . . . . Power Chain Reactions 2 | . . . 2 . . . . . Alert | -11 -10 -10 -9 -9 -9 -8 -8 -8 ------- Run | Yrd Mat Min Mat Min Exi Min Mat Gar Maximum Alert Level 2 | . . . 2 . . . . 1 Low Security (%) 73 | 100 100 100 35 100 . 100 100 82 Level 1 17 | . . . 40 . . . . 17 Level 2 9 | . . . 23 . . . . . Level 3 . | . . . . . . . . . Level 4 . | . . . . . . . . . Level 5 . | . . . . . . . . . High Security . | . . . . . . . . . Max Security . | . . . . . . . . . Peak Influence 456 | . 107 10 456 173 . 98 80 213 Initial 173 | . . 10 . 173 . . 35 2 Average 121 | . 29 2 260 122 . 15 30 85 Influence Increases 2590 | . 351 . 1280 . . 325 353 281 Destroy 0b10 Robot/C 1520 | . 160 . 760 . . 260 200 140 Destroy 0b10 Robot/NC 190 | . 55 . 115 . . 10 10 . Destroy Leader 396 | . 38 . 238 . . 40 70 10 Successful Hack 74 | . 31 . 21 . . . 8 14 Disable Machine 105 | . 15 . 90 . . . . . Anti-Garrison Action 50 | . . . . . . . . 50 Destroy Structure 120 | . 7 . 41 . . . 20 52 Partial Spotted 15 | . . . . . . . . 15 Lose Combat Pursuer 120 | . 45 . 15 . . 15 45 . Influence Decreases 2377 | . 324 27 835 382 63 233 441 72 Entered New Map 411 | . . 17 . 272 63 . 57 2 Time Decay 1660 | . 318 10 725 110 . 223 274 . Lost Part 286 | . 6 . 100 . . . 110 70 Lost Ally 20 | . . . 10 . . 10 . . Squads Dispatched 13 | . 2 . 7 . . . 4 . Investigation 5 | . 1 . 3 . . . 1 . Extermination . | . . . . . . . . . Reinforcement 6 | . 1 . 4 . . . 1 . Assault . | . . . . . . . . . Garrison 2 | . . . . . . . 2 . Intercept . | . . . . . . . . . Searches Triggered . | . . . . . . . . . Construction Impeded . | . . . . . . . . . Haulers Reinforced . | . . . . . . . . . Active Scanning Responses . | . . . . . . . . . Cargo Convoy Interrupts . | . . . . . . . . . Stealth | -11 -10 -10 -9 -9 -9 -8 -8 -8 --------- Run | Yrd Mat Min Mat Min Exi Min Mat Gar Distress Signals 8 | . . . 5 . . . 2 1 Communications Jammed . | . . . . . . . . . Distress Signals . | . . . . . . . . . Times Spotted 131 | . 29 . 54 . . 13 23 12 Peak Tracking Total 6 | . 5 . 5 . . 4 6 6 Tactical Retreats 7 | . 3 . 1 . . 1 2 . Traps | -11 -10 -10 -9 -9 -9 -8 -8 -8 ------- Run | Yrd Mat Min Mat Min Exi Min Mat Gar Traps Triggered 9 | . 4 . 2 . . . . 3 Indirectly . | . . . . . . . . . Trap Hack Attempts . | . . . . . . . . . Triggered . | . . . . . . . . . Disarmed . | . . . . . . . . . Reprogrammed . | . . . . . . . . . Reused . | . . . . . . . . . Traps Extracted . | . . . . . . . . . Installed . | . . . . . . . . . Triggered . | . . . . . . . . . Machines | -11 -10 -10 -9 -9 -9 -8 -8 -8 ---------- Run | Yrd Mat Min Mat Min Exi Min Mat Gar Machines Disabled 9 | . 1 . 6 . . . . 2 Max in Single Turn 2 | . 1 . 1 . . . . 2 Phase Generator 1 | . . . . . . . . 1 Machines Repaired . | . . . . . . . . . Machines Dismantled . | . . . . . . . . . Machines Sabotaged . | . . . . . . . . . Overloaded Fab Kills . | . . . . . . . . . Hacking | -11 -10 -10 -9 -9 -9 -8 -8 -8 --------- Run | Yrd Mat Min Mat Min Exi Min Mat Gar Machines Accessed 27 | . 8 . 10 . 4 1 3 1 Terminals 17 | . 7 . 6 . . 1 2 1 Fabricators . | . . . . . . . . . Repair Stations 3 | . 1 . 2 . . . . . Recycling Units . | . . . . . . . . . Scanalyzers 2 | . . . 2 . . . . . Garrison Access 1 | . . . . . . . 1 . Total Hacks 128 | . 29 . 40 . 49 2 7 1 Successful 92 | . 13 . 26 . 49 . 3 1 Failed 36 | . 16 . 14 . . 2 4 . Catastrophic 1 | . . . . . . . 1 . Database Lockouts . | . . . . . . . . . Manual 60 | . 31 . 19 . 1 2 6 1 Terminals 56 | . 28 . 19 . . 2 6 1 Fabricators . | . . . . . . . . . Repair Stations 7 | . 1 . 6 . . . . . Recycling Units . | . . . . . . . . . Scanalyzers 15 | . . . 15 . . . . . Garrison Access 1 | . . . . . . . 1 . Terminal Hacks 53 | . 3 . 1 . 49 . . . Record 49 | . . . . . 49 . . . Prototype ID Bank 4 | . 3 . 1 . . . . . Fabricator Hacks . | . . . . . . . . . Repair Station Hacks 4 | . . . 4 . . . . . Scan Component 2 | . . . 2 . . . . . Repair 2 | . . . 2 . . . . . Recycling Unit Hacks . | . . . . . . . . . Scanalyzer 14 | . . . 14 . . . . . Insert Component 6 | . . . 6 . . . . . Analyze 8 | . . . 8 . . . . . Garrison Access Hacks 1 | . . . . . . . 1 . Unlock Access 1 | . . . . . . . 1 . Unauthorized Hacks 20 | . 10 . 7 . . . 2 1 Terminals 18 | . 9 . 6 . . . 2 1 Assimilate 2 | . . . 2 . . . . . Botnet 13 | . 7 . 3 . . . 2 1 Operators 3 | . 2 . 1 . . . . . Fabricators . | . . . . . . . . . Repair Stations 2 | . 1 . 1 . . . . . Mechanics 2 | . 1 . 1 . . . . . Recycling Units . | . . . . . . . . . Scanalyzers . | . . . . . . . . . Garrison Access . | . . . . . . . . . Data Cores Recovered 2 | . 1 . . . . . 1 . Used 1 | . . . . . . . 1 . Hacking Detections 21 | . 6 . 10 . . 1 3 1 Full Trace Events 8 | . 4 . 3 . . . 1 . Feedback Events . | . . . . . . . . . Feedback Blocked . | . . . . . . . . . Robot Schematics Acquired . | . . . . . . . . . Robots Built . | . . . . . . . . . Authchips . | . . . . . . . . . Time . | . . . . . . . . . Total Robot Build Rating . | . . . . . . . . . Part Schematics Acquired 5 | . . . 5 . . . . . Parts Built . | . . . . . . . . . Authchips . | . . . . . . . . . Time . | . . . . . . . . . Total Part Build Rating . | . . . . . . . . . Part Studies Acquired . | . . . . . . . . . Parts Repaired 2 | . . . 2 . . . . . Time 52 | . . . 52 . . . . . Parts Recycled . | . . . . . . . . . Recycled Matter . | . . . . . . . . . Retrieved Matter . | . . . . . . . . . Retrieved Components . | . . . . . . . . . Parts Scanalyzed 5 | . . . 5 . . . . . Part Schematics Acquired 5 | . . . 5 . . . . . Parts Damaged 1 | . . . 1 . . . . . Bothacking | -11 -10 -10 -9 -9 -9 -8 -8 -8 ------------ Run | Yrd Mat Min Mat Min Exi Min Mat Gar Used RIF Installer . | . . . . . . . . . Robots Hacked . | . . . . . . . . . Non-combat . | . . . . . . . . . Combat . | . . . . . . . . . Robot Hacks Applied . | . . . . . . . . . Relay Couplers Released . | . . . . . . . . . Fabnet Peak Effective % . | . . . . . . . . . Robots Rewired . | . . . . . . . . . Allies Hacked . | . . . . . . . . . Hacks Repelled . | . . . . . . . . . Allies | -11 -10 -10 -9 -9 -9 -8 -8 -8 -------- Run | Yrd Mat Min Mat Min Exi Min Mat Gar Total Allies 2 | . . . 2 . . . . . Largest Group 1 | . . . 1 1 1 1 . . Highest-Rated Group 10 | . . . 10 9 9 9 . . Highest-Rated Ally 10 | . . . 10 9 9 9 . . Total Orders 7 | . . . 7 . . . . . STAY 4 | . . . 4 . . . . . FOLLOW 3 | . . . 3 . . . . . Ally Attacks . | . . . . . . . . . Total Damage . | . . . . . . . . . Kills . | . . . . . . . . . Allies Corrupted . | . . . . . . . . . Allies Melted . | . . . . . . . . . Intel | -11 -10 -10 -9 -9 -9 -8 -8 -8 ------- Run | Yrd Mat Min Mat Min Exi Min Mat Gar Active Infowar (turns) 135 | . . . . . . . 135 . Optics 135 | . . . . . . . 135 . Robot Analysis Total . | . . . . . . . . . Derelict Logs Recovered 1 | . . 1 . . . . . . Drone Launches . | . . . . . . . . . Drone Recoveries . | . . . . . . . . . Exploration | -11 -10 -10 -9 -9 -9 -8 -8 -8 ------------- Run | Yrd Mat Min Mat Min Exi Min Mat Gar Turns Passed 13178 | 67 2150 65 4267 221 1942 2609 734 1123 Spaces Moved 3984 | 38 844 36 1320 70 525 623 199 329 Core 3 | 2 1 . . . . . . . Treads 2642 | 31 294 . 887 70 523 623 199 15 Legs 190 | . . . . . 2 . . 188 Wheels 1149 | 5 549 36 433 . . . . 126 Hover . | . . . . . . . . . Flight . | . . . . . . . . . Fastest Speed 50 | 50 160 185 80 320 320 320 240 177 Average Speed 275 | 146 204 185 271 320 368 320 256 269 Slowest Speed 2400 | 160 2400 185 400 320 640 320 720 800 Overloaded Moves . | . . . . . . . . . Propulsion Burnouts . | . . . . . . . . . Robots Hopped . | . . . . . . . . . Potential Cave-ins . | . . . . . . . . . Cave-ins Triggered 1 | . . . . . . . . 1 Exploration Rate (%) 51 | 3 96 11 80 17 92 94 23 48 Regions Visited 8 Branch Regions 4 Pre-discovered Areas 2 | . . 1 . . 1 . . . Known Exits Taken 1 | . . . . . . . 1 . Unknown Exits Taken 7 | 1 1 1 1 1 1 1 . . Scrap Searched 1 | . . . . . . 1 . . Spaces Dug 11 | . . . . . . . . 11 Terrain Destroyed 140 | . 2 . 31 . . . 22 85 Melee 11 | . . . . . . . . 11 Projectile 2 | . 2 . . . . . . . AOE 127 | . . . 31 . . . 22 74 Terrain Rammed . | . . . . . . . . . Walls Destroyed . | . . . . . . . . . Machines Disabled . | . . . . . . . . . Actions | -11 -10 -10 -9 -9 -9 -8 -8 -8 --------- Run | Yrd Mat Min Mat Min Exi Min Mat Gar Total 5600 | 47 1175 35 1746 69 535 1191 343 459 Wait 1066 | . 224 . 210 . . 541 75 16 Move 3976 | 37 843 35 1319 69 524 622 198 329 Hop . | . . . . . . . . . Pick Up 80 | 3 28 . 35 . 3 1 5 5 Fast Attach 33 | 5 13 . 8 . . . 2 5 Attach 36 | 1 3 . 8 . . 2 6 16 Detach 11 | . 1 . . . 1 . 1 8 Swap 30 | 1 3 . 7 . 2 1 6 10 Drop 23 | . 3 . 10 . 5 . 4 1 Fire 278 | . 49 . 131 . . 23 43 32 Melee 41 | . 4 . . . . . . 37 Ram 8 | . 1 . 7 . . . . . Kick . | . . . . . . . . . Crush 18 | . 3 . 11 . . 1 3 . Escape Stasis . | . . . . . . . . . Rewire . | . . . . . . . . . Trap . | . . . . . . . . . Miscellaneous . | . . . . . . . . . Route ------- -11/Scrapyard -10/Materials (discovered 6 exits: *Mat x3 / [*Min x2] / [*Sub]) -10/Mines -9/Materials (discovered 5 exits: *Mat x2 / [*Min x2] / [*Sto]) -9/Mines -9/Exiles (discovered 2 exits: *Min x2) -8/Mines -8/Materials (discovered 2 exits: [*Fac] / Gar) -8/Garrison (discovered 1 exit: [*Mat]) History --------- Turn | Location | Event 6 | -11/Scrapyard | Discovered new exit (range 15) 68 | -11/Scrapyard | Entered Materials 304 | -10/Materials | Build established: Mutant 375 | -10/Materials | Discovered new exit (range 8) 385 | -10/Materials | Discovered new exit (range 6) 512 | -10/Materials | Discovered new exit (range 16) 768 | -10/Materials | Derelicts attacked the area 869 | -10/Materials | Core integrity fell below 50% 881 | -10/Materials | Core integrity fell below 20% 895 | -10/Materials | Lost 5 parts (1p2n2w) 959 | -10/Materials | Build established: Hauler-Mutant 1113 | -10/Materials | Discovered new exit (range 13) 1337 | -10/Materials | Discovered new exit (range 15) 1871 | -10/Materials | Discovered new exit (range 15) 2218 | -10/Materials | Entered Mines 2259 | -10/Mines | Discovered new exit (range 13) 2272 | -10/Mines | Learned location of Zion (-7) 2283 | -10/Mines | Entered Materials 2283 | -9/Materials | Evolved 2 slots: Propulsion x1, Utility x1 2283 | -9/Materials | Discovered new exit (range 7) 2763 | -9/Materials | Repaired Cargo Storage Unit 2941 | -9/Materials | Discovered new exit (range 10) 2980 | -9/Materials | Lost 3 parts (2n1w) 3142 | -9/Materials | Core integrity fell below 50% 3172 | -9/Materials | Lost 3 parts (1n1u1w) 4066 | -9/Materials | Repaired Wheel 4512 | -9/Materials | Discovered new exit (range 10) 5120 | -9/Materials | Discovered new exit (range 11) 5363 | -9/Materials | Discovered new exit (range 6) 6550 | -9/Materials | Entered Mines 6550 | -9/Mines | Accompanied by 1 ally 6755 | -9/Mines | Deemed a non-threat by the Exiles lab entrance 6758 | -9/Mines | Discovered new exit (range 5) 6771 | -9/Mines | Entered Exiles 6771 | -9/Exiles | Accompanied by 1 ally 6851 | -9/Exiles | Met 8R-AWN 6938 | -9/Exiles | Met EX-HEX 7014 | -9/Exiles | Discovered new exit (range 15) 7248 | -9/Exiles | Met EX-BIN 7302 | -9/Exiles | Aligned with FarCom system 7306 | -9/Exiles | Given EX-Vault access code 7434 | -9/Exiles | Opened EX-Vault 7446 | -9/Exiles | Found Prototype Leg 7446 | -9/Exiles | Identified Potential Leg 7454 | -9/Exiles | Found Potential Leg 7584 | -9/Exiles | Warned to stay clear of 0b10 Research branches 8048 | -9/Exiles | Met EX-DEC 8116 | -9/Exiles | Visited The Gauntlet 8678 | -9/Exiles | Discovered new exit (range 12) 8713 | -9/Exiles | Left Exiles lab with Potential Leg 8713 | -9/Exiles | Entered Mines 8713 | -8/Mines | Accompanied by 1 ally 8725 | -8/Mines | Core integrity fell below 20% 11239 | -8/Mines | Discovered new exit (range 12) 11322 | -8/Mines | Entered Materials 11322 | -8/Materials | Evolved 2 slots: Propulsion x1, Utility x1 11921 | -8/Materials | Garrison activated, responded to threat 11975 | -8/Materials | Discovered new exit (range 10) 12006 | -8/Materials | Lost 4 parts (3n1w) 12052 | -8/Materials | Identified exit to Garrison 12056 | -8/Materials | Core integrity fell below 50% 12056 | -8/Materials | Entered Garrison 12086 | -8/Garrison | Lost 5 parts (3n1u1w) 12282 | -8/Garrison | Crushed by falling debris 12438 | -8/Garrison | Lost 3 parts (1p1n1w) 12701 | -8/Garrison | Phase Generator disabled 12786 | -8/Garrison | Triggered checkpoint 12860 | -8/Garrison | Discovered new exit (range 10) 13132 | -8/Garrison | Core integrity fell below 20% 13179 | -8/Garrison | Destroyed by P-60 Hacker with Shock Rifle Last Messages --------------- Acquired Flexi-carbon Leg. System corrupted: Energy discharge (-100). Acquired Flexi-carbon Leg. Sneak attack on H-55 Commando. H-55 Commando system offline. System corrupted: Energy discharge (-92). System corrupted: Heat flow error (+219). W-25 Informer springs to life. W-25 Informer sends out distress signal. Lgt. Armor Plating destroyed. X-57 Shotgunner destroyed. Acquired Hrd. Medium Armor Plating. Acquired 50 matter. Triggered Alarm Trap. An alarm sounds. Triggered Alarm Trap. An alarm sounds. TOG|S0LBP5GV RZNK8|6PX89SS3&1QB Acquired Power Sword. System corrupted: Heat flow error (+128). Map ----- +----------------------------------------------------+ | ???#"" ""#?????????????? | | ???#"" = ""#?????????????? | | ???#" "#?????????????? | | ???#""" """#?????????????? | | ???## "#?????????????? | | ????# # ""#?????????????? | | ???## ""#?????????????? | | ???# " "#?????????????? | | ???## # """#?????????????? | | ????### ####?????????????? | | ??????## ###????????????????? | | ?#####?#*#??????????????????? | | ?# !### #??"#??????????????? | | ## < + = #?#"######?????????? | | ### ###""""""#?????????? | | ## " "#?????????? | | ####### "#?????????? | | ??????# "#?????????? | | ??????# " "#????###### | | ??????# """ ""#?### ##""# | | ??????# " #### !"# | | ??????# #?# #?#pp"# | | # #?# ### ### !"# | | # ## !"# | | ##????# b###l #?# !"# | | ??????###### #####?# ###@["# | | ???????????# #?????##= "# | | ???????????# #??????###p##""# | | ???????????# #????????####### | | ??????????? #??????????????? | | ???????????# #??????????????? | | ???????????# #??????????????? | | ???????????# #??????????????? | | ???????????# #??????????????? | | ???????????? ???????????????? | | ???????????? ???????????????? | | ???????????? ???????????????? | | ???????????? ???????????????? | | ???????????? ???????????????? | | ????????????#???????????????? | | ????????????????????????????? | | ????????????????????????????? | | ????????????????????????????? | | ????????????????????????????? | | ????????????????????????????? | | ????????????????????????????? | | ????????????????????????????? | | ????????????????????????????? | | ????????????????????????????? | | ????????????????????????????? | +----------------------------------------------------+ Best States ------------- Heat Dissipation 31 Energy Generation 12 Energy Capacity 265 Matter Stores 300 Matter Capacity 300 Sight Range 20 Terrain Scan Density 10 Armor Coverage 300 Core Shielding 20 Utility Shielding 66 Evasion (%) 44 Recoil Reduction 4 Particle Charging 15 Item Schematics ----------------- Hacking Suite | -9/Materials | Scanalyzed Propulsion Shielding | -9/Materials | Scanalyzed Mni. Grenade Launcher | -9/Materials | Scanalyzed Imp. Utility Shielding | -9/Materials | Scanalyzed Adv. Beam Rifle | -9/Materials | Scanalyzed Robot Schematics ------------------ None Fabricated ------------ Nothing Repaired ---------- Cargo Storage Unit | 12% | -9/Materials Wheel | 37% | -9/Materials Studied --------- None Alien Tech Used ----------------- None Achievements -------------- Dynamic Key Spot Them First Tank Unlikely Earthworm Challenges ------------ None Game ------ Seed TrapUtilityCarapace Manual? 0 Play Time 01:00:14 Cumulative 12.0 hours Start 2026.01.08 @ 10:39:23 End 2026.01.08 @ 11:49:02 Sessions 3 Manual Loads 0 Difficulty Rogue Special Mode None Game No. 15 Rogue 15 Adventurer 0 Explorer 0 Win Type - Total 0 Types 0/0/0/0/0/0/0/0/0/0 Lore% 6 Gallery% 15 Achievement% 17 Wizard Run 0 Options --------- Layout 1 ASCII 0 Keyboard 1 Movement Vi Keybinds 0 Fullscreen 1 Font 24/Smallcaps Map View 50x40 Zoom Use 0% Tactical HUD 0 Map Filters NONE Filters NONE Steam 1 RUN: 0451db0d-7666-416b-855a-25695ec3b791